[Event "Early-Titled-Tuesday-Blitz-March-05-2024"]
[Site "Chess.com"]
[Date "2024.03.05"]
[Round "3"]
[White "viktorgen2021"]
[Black "viviania"]
[Result "0-1"]
[WhiteElo "2517"]
[BlackElo "2890"]
[TimeControl "180+1"]
[EndTime "8:30:00 PST"]
[Termination "viviania won by resignation"]

1. Nf3 {[%clk 0:02:59.9]} 1... Nf6 {[%clk 0:02:59.2]} 2. c4 {[%clk 0:02:59.8]}
2... c5 {[%clk 0:02:58.6]} 3. g3 {[%clk 0:03:00]} 3... b6 {[%clk 0:02:57.8]} 4.
Bg2 {[%clk 0:02:59.9]} 4... Bb7 {[%clk 0:02:58]} 5. O-O {[%clk 0:03:00.4]} 5...
g6 {[%clk 0:02:58.3]} 6. d3 {[%clk 0:02:58.8]} 6... Bg7 {[%clk 0:02:57.7]} 7.
Nc3 {[%clk 0:02:58.9]} 7... O-O {[%clk 0:02:54]} 8. Rb1 {[%clk 0:02:58.8]} 8...
d5 {[%clk 0:02:51.6]} 9. cxd5 {[%clk 0:02:44.5]} 9... Nxd5 {[%clk 0:02:51.6]}
10. Bd2 {[%clk 0:02:43.8]} 10... Nc6 {[%clk 0:02:48.2]} 11. a3 {[%clk
0:02:43.4]} 11... Rc8 {[%clk 0:02:41.4]} 12. Nxd5 {[%clk 0:02:40.3]} 12... Qxd5
{[%clk 0:02:41.4]} 13. Bc3 {[%clk 0:02:39.8]} 13... Qd6 {[%clk 0:02:35.8]} 14.
Qd2 {[%clk 0:02:35.5]} 14... Rfd8 {[%clk 0:02:31.1]} 15. Rfd1 {[%clk 0:02:32.2]}
15... a5 {[%clk 0:02:25.3]} 16. Bxg7 {[%clk 0:02:29.9]} 16... Kxg7 {[%clk
0:02:25]} 17. h4 {[%clk 0:02:25.2]} 17... h6 {[%clk 0:02:18.8]} 18. h5 {[%clk
0:02:24.6]} 18... g5 {[%clk 0:02:18.4]} 19. Rbc1 {[%clk 0:01:54.3]} 19... e5
{[%clk 0:02:01.7]} 20. Qe3 {[%clk 0:01:44.2]} 20... Nd4 {[%clk 0:01:52.4]} 21.
Kf1 {[%clk 0:01:11.3]} 21... Re8 {[%clk 0:01:44.3]} 22. b4 {[%clk 0:00:57.1]}
22... Bxf3 {[%clk 0:01:23.4]} 23. exf3 {[%clk 0:00:52.7]} 23... cxb4 {[%clk
0:01:20.4]} 24. Rxc8 {[%clk 0:00:50.3]} 24... Rxc8 {[%clk 0:01:20.3]} 25. axb4
{[%clk 0:00:51]} 25... axb4 {[%clk 0:01:20.3]} 26. Rc1 {[%clk 0:00:38.2]} 26...
Rxc1+ {[%clk 0:01:12.8]} 27. Qxc1 {[%clk 0:00:38.2]} 27... b3 {[%clk 0:01:13]}
28. f4 {[%clk 0:00:37.7]} 28... Qc5 {[%clk 0:01:05.1]} 29. Qe1 {[%clk 0:00:33]}
29... b2 {[%clk 0:00:59.4]} 0-1

[Event "Early-Titled-Tuesday-Blitz-March-05-2024"]
[Site "Chess.com"]
[Date "2024.03.05"]
[Round "3"]
[White "martinmena"]
[Black "Sebastian"]
[Result "0-1"]
[WhiteElo "2317"]
[BlackElo "2910"]
[TimeControl "180+1"]
[EndTime "8:30:02 PST"]
[Termination "Sebastian won by checkmate"]

1. c4 {[%clk 0:03:00.9]} 1... g6 {[%clk 0:02:55.6]} 2. g3 {[%clk 0:03:01.3]}
2... c5 {[%clk 0:02:54.4]} 3. Bg2 {[%clk 0:03:02.2]} 3... Bg7 {[%clk 0:02:54.6]}
4. Nc3 {[%clk 0:03:02.2]} 4... Nc6 {[%clk 0:02:54.8]} 5. e4 {[%clk 0:03:02.7]}
5... e6 {[%clk 0:02:53.2]} 6. Nge2 {[%clk 0:03:02.9]} 6... Nge7 {[%clk
0:02:53.4]} 7. O-O {[%clk 0:03:03.5]} 7... d6 {[%clk 0:02:53.4]} 8. d3 {[%clk
0:03:04]} 8... O-O {[%clk 0:02:53.3]} 9. Be3 {[%clk 0:03:04.7]} 9... Nd4 {[%clk
0:02:53.1]} 10. Qd2 {[%clk 0:03:04.7]} 10... Nec6 {[%clk 0:02:53.4]} 11. Bh6
{[%clk 0:03:01.9]} 11... Bxh6 {[%clk 0:02:52.6]} 12. Qxh6 {[%clk 0:03:02.8]}
12... Qf6 {[%clk 0:02:52.9]} 13. Qf4 {[%clk 0:02:29.7]} 13... Nxe2+ {[%clk
0:02:49.4]} 14. Nxe2 {[%clk 0:02:29]} 14... Qxb2 {[%clk 0:02:49.8]} 15. Rfe1
{[%clk 0:02:21]} 15... Qe5 {[%clk 0:02:27.9]} 16. Qh4 {[%clk 0:02:15.1]} 16...
Nd4 {[%clk 0:02:23.6]} 17. Rab1 {[%clk 0:02:02.9]} 17... Nxe2+ {[%clk
0:02:16.3]} 18. Rxe2 {[%clk 0:02:03.8]} 18... b6 {[%clk 0:02:14.5]} 19. Kh1
{[%clk 0:01:59.9]} 19... Bb7 {[%clk 0:02:10.6]} 20. f4 {[%clk 0:01:59]} 20...
Qd4 {[%clk 0:02:09]} 21. Rd1 {[%clk 0:01:46.5]} 21... Rae8 {[%clk 0:02:01.9]}
22. g4 {[%clk 0:01:39.4]} 22... Bc6 {[%clk 0:01:52.9]} 23. Qh3 {[%clk
0:01:12.9]} 23... b5 {[%clk 0:01:44.3]} 24. f5 {[%clk 0:00:36]} 24... exf5
{[%clk 0:01:37.9]} 25. gxf5 {[%clk 0:00:35.3]} 25... bxc4 {[%clk 0:01:38]} 26.
Rf1 {[%clk 0:00:27.7]} 26... cxd3 {[%clk 0:01:35.9]} 27. Rd2 {[%clk 0:00:22.7]}
27... Bxe4 {[%clk 0:01:35.9]} 28. f6 {[%clk 0:00:18.7]} 28... Bxg2+ {[%clk
0:01:33.3]} 29. Rxg2 {[%clk 0:00:18.5]} 29... d2 {[%clk 0:01:23.5]} 30. Qh6
{[%clk 0:00:12.9]} 30... Qxf6 {[%clk 0:01:23]} 31. Rxf6 {[%clk 0:00:08.8]} 31...
d1=Q+ {[%clk 0:01:18.8]} 32. Rg1 {[%clk 0:00:08.8]} 32... Qd5+ {[%clk
0:01:18.9]} 33. Rg2 {[%clk 0:00:05.7]} 33... Re1+ {[%clk 0:01:19.1]} 34. Rf1
{[%clk 0:00:06]} 34... Rxf1# {[%clk 0:01:19.6]} 0-1

[Event "Early-Titled-Tuesday-Blitz-March-05-2024"]
[Site "Chess.com"]
[Date "2024.03.05"]
[Round "3"]
[White "Indianlad"]
[Black "Meri-Arabidze"]
[Result "1-0"]
[WhiteElo "3016"]
[BlackElo "2718"]
[TimeControl "180+1"]
[EndTime "8:30:04 PST"]
[Termination "Indianlad won on time"]

1. b3 {[%clk 0:02:59.3]} 1... f5 {[%clk 0:02:59.2]} 2. Bb2 {[%clk 0:02:59.3]}
2... Nf6 {[%clk 0:02:59.9]} 3. Nf3 {[%clk 0:02:59.1]} 3... e6 {[%clk 0:03:00.1]}
4. g3 {[%clk 0:02:59.3]} 4... Be7 {[%clk 0:03:00.3]} 5. Bg2 {[%clk 0:02:59.7]}
5... O-O {[%clk 0:03:01]} 6. O-O {[%clk 0:02:59.9]} 6... d5 {[%clk 0:03:01.3]}
7. c4 {[%clk 0:02:59.8]} 7... c6 {[%clk 0:03:00.2]} 8. d3 {[%clk 0:02:59.6]}
8... b6 {[%clk 0:03:00.2]} 9. Nc3 {[%clk 0:02:59.6]} 9... Nbd7 {[%clk
0:02:56.7]} 10. e4 {[%clk 0:02:48.3]} 10... Nc5 {[%clk 0:02:46]} 11. exd5 {[%clk
0:02:45.9]} 11... exd5 {[%clk 0:02:44.7]} 12. cxd5 {[%clk 0:02:45]} 12... cxd5
{[%clk 0:02:42.9]} 13. Nd4 {[%clk 0:02:41.7]} 13... Qd7 {[%clk 0:02:11.2]} 14.
b4 {[%clk 0:02:39.7]} 14... Na6 {[%clk 0:02:09.6]} 15. a3 {[%clk 0:02:38.8]}
15... Nc7 {[%clk 0:02:07]} 16. Re1 {[%clk 0:02:37.7]} 16... Rf7 {[%clk
0:01:55.1]} 17. Nce2 {[%clk 0:02:30.7]} 17... a5 {[%clk 0:01:45.9]} 18. bxa5
{[%clk 0:02:27.8]} 18... bxa5 {[%clk 0:01:43.1]} 19. Nf4 {[%clk 0:02:27.8]}
19... Bc5 {[%clk 0:01:34.1]} 20. Rc1 {[%clk 0:02:26.9]} 20... Bb6 {[%clk
0:01:27]} 21. h3 {[%clk 0:02:19.6]} 21... Bb7 {[%clk 0:01:22.9]} 22. Nf3 {[%clk
0:02:17.6]} 22... Qb5 {[%clk 0:01:12]} 23. Bd4 {[%clk 0:02:16.2]} 23... Bxd4
{[%clk 0:01:03.8]} 24. Nxd4 {[%clk 0:02:16.4]} 24... Qd7 {[%clk 0:01:04.7]} 25.
Nf3 {[%clk 0:02:14.2]} 25... Re7 {[%clk 0:01:02]} 26. Rxe7 {[%clk 0:02:13.6]}
26... Qxe7 {[%clk 0:01:02.9]} 27. Qb3 {[%clk 0:02:14.2]} 27... Ba6 {[%clk
0:00:56.3]} 28. Qb6 {[%clk 0:02:11.9]} 28... Nb5 {[%clk 0:00:45.8]} 29. Re1
{[%clk 0:02:07.9]} 29... Qxa3 {[%clk 0:00:42]} 30. Qe6+ {[%clk 0:02:07.8]} 30...
Kh8 {[%clk 0:00:40.7]} 31. Ne5 {[%clk 0:02:07.7]} 31... h6 {[%clk 0:00:25.2]}
32. Nf7+ {[%clk 0:02:01.6]} 32... Kh7 {[%clk 0:00:21.2]} 33. Qxf5+ {[%clk
0:02:02.2]} 33... Kg8 {[%clk 0:00:20.1]} 34. Nxh6+ {[%clk 0:02:02.9]} 34... Kh8
{[%clk 0:00:14.4]} 35. Nf7+ {[%clk 0:02:01.1]} 35... Kg8 {[%clk 0:00:14.5]} 36.
Bxd5 {[%clk 0:01:59.3]} 36... Nxd5 {[%clk 0:00:12.8]} 37. Nxd5 {[%clk 0:02:00]}
37... Nd4 {[%clk 0:00:11.3]} 38. Nh6+ {[%clk 0:01:57.9]} 38... Kh8 {[%clk
0:00:07.6]} 39. Qh5 {[%clk 0:01:56.3]} 39... Qxd3 {[%clk 0:00:05.5]} 40. Nf5+
{[%clk 0:01:54.9]} 40... Kg8 {[%clk 0:00:05.6]} 41. Nde7+ {[%clk 0:01:54.3]}
41... Kf8 {[%clk 0:00:03]} 42. Qh8+ {[%clk 0:01:54.7]} 42... Kf7 {[%clk
0:00:02.7]} 43. Qxg7+ {[%clk 0:01:55.4]} 1-0

[Event "Early-Titled-Tuesday-Blitz-March-05-2024"]
[Site "Chess.com"]
[Date "2024.03.05"]
[Round "3"]
[White "Genghis_K"]
[Black "LikeWater"]
[Result "1-0"]
[WhiteElo "2952"]
[BlackElo "2694"]
[TimeControl "180+1"]
[EndTime "8:30:09 PST"]
[Termination "Genghis_K won by resignation"]

1. e4 {[%clk 0:02:44.3]} 1... c6 {[%clk 0:03:00.9]} 2. Nf3 {[%clk 0:02:43.3]}
2... d5 {[%clk 0:03:01]} 3. Nc3 {[%clk 0:02:44]} 3... dxe4 {[%clk 0:03:00.3]} 4.
Nxe4 {[%clk 0:02:44.9]} 4... Nf6 {[%clk 0:03:00.4]} 5. Qe2 {[%clk 0:02:45.7]}
5... Nxe4 {[%clk 0:03:00.3]} 6. Qxe4 {[%clk 0:02:46.6]} 6... Be6 {[%clk
0:03:00.6]} 7. b3 {[%clk 0:02:46.1]} 7... Bd5 {[%clk 0:02:54.3]} 8. Qf4 {[%clk
0:02:44.6]} 8... Qd6 {[%clk 0:02:53.4]} 9. Qe3 {[%clk 0:02:35.2]} 9... Bxf3
{[%clk 0:02:53.2]} 10. gxf3 {[%clk 0:02:33.3]} 10... Qf6 {[%clk 0:02:43]} 11.
Rb1 {[%clk 0:02:29.9]} 11... Nd7 {[%clk 0:02:41.7]} 12. Bb2 {[%clk 0:02:29.4]}
12... e5 {[%clk 0:02:39.4]} 13. Bh3 {[%clk 0:02:27.9]} 13... Bd6 {[%clk
0:02:30.4]} 14. d4 {[%clk 0:02:24.8]} 14... Bb4+ {[%clk 0:02:13.9]} 15. Kf1
{[%clk 0:02:16.3]} 15... O-O-O {[%clk 0:01:43]} 16. dxe5 {[%clk 0:02:13.3]}
16... Qe7 {[%clk 0:01:36.3]} 17. Rd1 {[%clk 0:02:01]} 17... Kb8 {[%clk
0:01:19.9]} 18. Rg1 {[%clk 0:01:58.1]} 18... Rhg8 {[%clk 0:01:12]} 19. e6 {[%clk
0:01:54.8]} 19... fxe6 {[%clk 0:01:07.1]} 20. Qxe6 {[%clk 0:01:53.2]} 20... Nf6
{[%clk 0:00:57.2]} 21. Be5+ {[%clk 0:01:31.8]} 21... Ka8 {[%clk 0:00:55.4]} 22.
Rxd8+ {[%clk 0:01:31.4]} 22... Rxd8 {[%clk 0:00:45.6]} 23. Qxe7 {[%clk 0:01:31]}
23... Bxe7 {[%clk 0:00:31.4]} 24. Rxg7 {[%clk 0:01:31.1]} 24... Ng8 {[%clk
0:00:19.6]} 25. Be6 {[%clk 0:01:27]} 25... Bf6 {[%clk 0:00:18.5]} 26. Bxf6
{[%clk 0:01:05.8]} 26... Nxf6 {[%clk 0:00:19.4]} 27. Rf7 {[%clk 0:01:06.5]}
27... Nh5 {[%clk 0:00:10.8]} 28. Bg4 {[%clk 0:01:00.6]} 1-0

[Event "Early-Titled-Tuesday-Blitz-March-05-2024"]
[Site "Chess.com"]
[Date "2024.03.05"]
[Round "3"]
[White "SergioMoralesG"]
[Black "ilqar_74"]
[Result "0-1"]
[WhiteElo "2513"]
[BlackElo "2839"]
[TimeControl "180+1"]
[EndTime "8:30:10 PST"]
[Termination "ilqar_74 won by checkmate"]

1. d4 {[%clk 0:03:00.9]} 1... Nf6 {[%clk 0:02:57.9]} 2. c4 {[%clk 0:03:00.9]}
2... e6 {[%clk 0:02:55.4]} 3. Nf3 {[%clk 0:03:01.4]} 3... d5 {[%clk 0:02:54.5]}
4. Nc3 {[%clk 0:03:01.7]} 4... Bb4 {[%clk 0:02:53.2]} 5. Bg5 {[%clk 0:03:01.6]}
5... h6 {[%clk 0:02:52.9]} 6. Bxf6 {[%clk 0:02:58.9]} 6... Qxf6 {[%clk
0:02:53.8]} 7. e3 {[%clk 0:02:53.6]} 7... O-O {[%clk 0:02:52.7]} 8. Qb3 {[%clk
0:02:53.5]} 8... Bxc3+ {[%clk 0:02:51.2]} 9. Qxc3 {[%clk 0:02:52.2]} 9... dxc4
{[%clk 0:02:50.8]} 10. Bxc4 {[%clk 0:02:49.9]} 10... b6 {[%clk 0:02:51.1]} 11.
O-O {[%clk 0:02:45.1]} 11... Bb7 {[%clk 0:02:50.9]} 12. Be2 {[%clk 0:02:42]}
12... Qe7 {[%clk 0:02:46.5]} 13. Rac1 {[%clk 0:02:40.7]} 13... Rc8 {[%clk
0:02:46.2]} 14. b4 {[%clk 0:02:30]} 14... Nd7 {[%clk 0:02:42.1]} 15. Nd2 {[%clk
0:02:04.9]} 15... a5 {[%clk 0:02:38.8]} 16. b5 {[%clk 0:01:56.2]} 16... c5
{[%clk 0:02:38.6]} 17. Bf3 {[%clk 0:01:52.6]} 17... cxd4 {[%clk 0:02:10.1]} 18.
Qxd4 {[%clk 0:01:51.8]} 18... e5 {[%clk 0:02:09.7]} 19. Qb2 {[%clk 0:01:09.9]}
19... e4 {[%clk 0:02:04.5]} 20. Bg4 {[%clk 0:01:10]} 20... Rxc1 {[%clk
0:02:02.8]} 21. Rxc1 {[%clk 0:01:00.9]} 21... Ne5 {[%clk 0:02:03]} 22. Be2
{[%clk 0:00:55.8]} 22... Rd8 {[%clk 0:02:01.4]} 23. Qc3 {[%clk 0:00:49.9]} 23...
Qg5 {[%clk 0:01:49.5]} 24. Nc4 {[%clk 0:00:31.1]} 24... Nf3+ {[%clk 0:01:33.6]}
25. Kh1 {[%clk 0:00:31]} 25... Qh4 {[%clk 0:01:32.7]} 26. gxf3 {[%clk
0:00:17.6]} 26... exf3 {[%clk 0:01:28.6]} 27. Bf1 {[%clk 0:00:08.3]} 27... Qxf2
{[%clk 0:01:25.1]} 28. Nxa5 {[%clk 0:00:01.2]} 28... Be4 {[%clk 0:01:13.3]} 29.
Qc7 {[%clk 0:00:02]} 29... Qxf1+ {[%clk 0:01:08.2]} 30. Rxf1 {[%clk 0:00:01.7]}
30... f2# {[%clk 0:01:08.8]} 0-1

[Event "Early-Titled-Tuesday-Blitz-March-05-2024"]
[Site "Chess.com"]
[Date "2024.03.05"]
[Round "3"]
[White "KhalilMousavi98"]
[Black "Juicy_Fork"]
[Result "1-0"]
[WhiteElo "2820"]
[BlackElo "2541"]
[TimeControl "180+1"]
[EndTime "8:30:14 PST"]
[Termination "KhalilMousavi98 won by resignation"]

1. Nf3 {[%clk 0:02:58.5]} 1... Nf6 {[%clk 0:03:00.2]} 2. g3 {[%clk 0:02:58.7]}
2... g6 {[%clk 0:02:56.3]} 3. Bg2 {[%clk 0:02:58.9]} 3... Bg7 {[%clk 0:02:56.7]}
4. O-O {[%clk 0:02:59.7]} 4... O-O {[%clk 0:02:56.9]} 5. d3 {[%clk 0:03:00.4]}
5... c5 {[%clk 0:02:55.9]} 6. c4 {[%clk 0:02:59.5]} 6... Nc6 {[%clk 0:02:56.1]}
7. Nc3 {[%clk 0:02:58.9]} 7... d6 {[%clk 0:02:53.9]} 8. a3 {[%clk 0:02:58]} 8...
a6 {[%clk 0:02:53.8]} 9. Rb1 {[%clk 0:02:58.2]} 9... Rb8 {[%clk 0:02:50.8]} 10.
b4 {[%clk 0:02:57.9]} 10... cxb4 {[%clk 0:02:50.8]} 11. axb4 {[%clk 0:02:58.8]}
11... b5 {[%clk 0:02:51.4]} 12. cxb5 {[%clk 0:02:59.2]} 12... axb5 {[%clk
0:02:52.3]} 13. h3 {[%clk 0:02:59.4]} 13... Bd7 {[%clk 0:02:46.8]} 14. Be3
{[%clk 0:02:46]} 14... Qc8 {[%clk 0:02:40.5]} 15. g4 {[%clk 0:02:11]} 15... Nxb4
{[%clk 0:02:33.7]} 16. Bd4 {[%clk 0:02:10.4]} 16... Nfd5 {[%clk 0:02:26.2]} 17.
Nxd5 {[%clk 0:02:02.1]} 17... Nxd5 {[%clk 0:02:27.1]} 18. Qb3 {[%clk 0:02:01.3]}
18... Be6 {[%clk 0:02:07.1]} 19. Bxg7 {[%clk 0:01:57.9]} 19... Kxg7 {[%clk
0:02:06.3]} 20. Rfc1 {[%clk 0:01:56.1]} 20... Qd7 {[%clk 0:01:59.2]} 21. e3
{[%clk 0:01:53.9]} 21... Kg8 {[%clk 0:01:50.5]} 22. Nd4 {[%clk 0:01:46.2]} 22...
Nf4 {[%clk 0:01:28.4]} 23. Nxe6 {[%clk 0:01:45.6]} 23... Ne2+ {[%clk 0:01:15.4]}
24. Kf1 {[%clk 0:01:43.5]} 24... Nxc1 {[%clk 0:01:12.1]} 25. Nxf8 {[%clk
0:01:43.5]} 25... Nxb3 {[%clk 0:01:09.1]} 26. Nxd7 {[%clk 0:01:42.3]} 26... Nd2+
{[%clk 0:01:01.6]} 27. Ke1 {[%clk 0:01:41.1]} 27... Nxb1 {[%clk 0:01:02.5]} 28.
Nxb8 {[%clk 0:01:41]} 28... b4 {[%clk 0:00:59.2]} 29. Nc6 {[%clk 0:01:28.3]}
29... b3 {[%clk 0:00:46.5]} 30. Na5 {[%clk 0:01:28.3]} 30... b2 {[%clk 0:00:08]}
31. Nc4 {[%clk 0:01:27.7]} 31... Nc3 {[%clk 0:00:07.2]} 32. Nxb2 {[%clk
0:01:27.9]} 32... d5 {[%clk 0:00:08.1]} 33. Nd1 {[%clk 0:01:21.5]} 1-0

[Event "Early-Titled-Tuesday-Blitz-March-05-2024"]
[Site "Chess.com"]
[Date "2024.03.05"]
[Round "3"]
[White "GaiozNigalidze"]
[Black "Mesa_1"]
[Result "1-0"]
[WhiteElo "2700"]
[BlackElo "2486"]
[TimeControl "180+1"]
[EndTime "8:30:18 PST"]
[Termination "GaiozNigalidze won by resignation"]

1. Nf3 {[%clk 0:03:00.9]} 1... Nf6 {[%clk 0:02:57.2]} 2. g3 {[%clk 0:03:00.7]}
2... g6 {[%clk 0:02:57.2]} 3. b3 {[%clk 0:03:01.2]} 3... Bg7 {[%clk 0:02:58]} 4.
Bb2 {[%clk 0:03:01.7]} 4... O-O {[%clk 0:02:57.9]} 5. Bg2 {[%clk 0:03:02.2]}
5... a5 {[%clk 0:02:52.7]} 6. O-O {[%clk 0:02:59.3]} 6... a4 {[%clk 0:02:52.5]}
7. c4 {[%clk 0:02:59.2]} 7... axb3 {[%clk 0:02:51.9]} 8. axb3 {[%clk 0:02:59]}
8... Rxa1 {[%clk 0:02:52.8]} 9. Bxa1 {[%clk 0:02:59]} 9... d6 {[%clk 0:02:53.3]}
10. d4 {[%clk 0:02:59.2]} 10... Nc6 {[%clk 0:02:53.6]} 11. Nbd2 {[%clk
0:02:59.3]} 11... Bf5 {[%clk 0:02:52.4]} 12. Nh4 {[%clk 0:02:58.6]} 12... Bd7
{[%clk 0:02:50.4]} 13. Nhf3 {[%clk 0:02:54.2]} 13... Bf5 {[%clk 0:02:47.1]} 14.
Nh4 {[%clk 0:02:52.9]} 14... Bd7 {[%clk 0:02:46.9]} 15. Bc3 {[%clk 0:02:48.5]}
15... e5 {[%clk 0:02:32]} 16. d5 {[%clk 0:02:48.3]} 16... Ne7 {[%clk 0:02:28.5]}
17. e4 {[%clk 0:02:41.3]} 17... c5 {[%clk 0:02:22.8]} 18. Qc2 {[%clk 0:02:28.3]}
18... Bh6 {[%clk 0:02:14.2]} 19. Ra1 {[%clk 0:02:24.9]} 19... Qc8 {[%clk
0:02:06.2]} 20. Ra7 {[%clk 0:02:19.1]} 20... Qb8 {[%clk 0:01:41.2]} 21. Qa2
{[%clk 0:02:04.7]} 21... Bxd2 {[%clk 0:01:39]} 22. Bxd2 {[%clk 0:02:01.6]} 22...
Kg7 {[%clk 0:01:31.9]} 23. b4 {[%clk 0:01:38]} 23... Rc8 {[%clk 0:01:24.4]} 24.
b5 {[%clk 0:01:35.9]} 24... Ne8 {[%clk 0:01:03.8]} 25. Qa5 {[%clk 0:01:05.9]}
25... b6 {[%clk 0:00:41.1]} 26. Qa6 {[%clk 0:00:59.3]} 26... Nc7 {[%clk
0:00:41.5]} 27. Qb7 {[%clk 0:00:52.6]} 27... Qxb7 {[%clk 0:00:39.7]} 28. Rxb7
{[%clk 0:00:52.9]} 28... f6 {[%clk 0:00:40.3]} 29. h3 {[%clk 0:00:42.5]} 29...
Kf7 {[%clk 0:00:35.2]} 30. Rxb6 {[%clk 0:00:42.5]} 30... Ke8 {[%clk 0:00:33.9]}
31. Rb7 {[%clk 0:00:42.8]} 31... Kd8 {[%clk 0:00:32.9]} 32. Ba5 {[%clk 0:00:41]}
1-0

[Event "Early-Titled-Tuesday-Blitz-March-05-2024"]
[Site "Chess.com"]
[Date "2024.03.05"]
[Round "3"]
[White "mbchess97"]
[Black "ChessSwole"]
[Result "0-1"]
[WhiteElo "2492"]
[BlackElo "2703"]
[TimeControl "180+1"]
[EndTime "8:30:21 PST"]
[Termination "ChessSwole won by resignation"]

1. c4 {[%clk 0:03:00.9]} 1... c5 {[%clk 0:02:58.7]} 2. g3 {[%clk 0:03:00.8]}
2... Nf6 {[%clk 0:02:56.3]} 3. Bg2 {[%clk 0:03:01.1]} 3... d5 {[%clk 0:02:56.6]}
4. cxd5 {[%clk 0:02:59.2]} 4... Nxd5 {[%clk 0:02:57.5]} 5. Nf3 {[%clk
0:02:56.6]} 5... Nc6 {[%clk 0:02:57.4]} 6. Nc3 {[%clk 0:02:55.4]} 6... Nc7
{[%clk 0:02:57.3]} 7. O-O {[%clk 0:02:48.9]} 7... e5 {[%clk 0:02:57.1]} 8. a3
{[%clk 0:02:49.3]} 8... Be7 {[%clk 0:02:54.7]} 9. b4 {[%clk 0:02:38.4]} 9... O-O
{[%clk 0:02:49.3]} 10. b5 {[%clk 0:02:34.2]} 10... Nd4 {[%clk 0:02:49.1]} 11.
Nxe5 {[%clk 0:02:31.8]} 11... Bf6 {[%clk 0:02:47.4]} 12. Nd3 {[%clk 0:02:17.3]}
12... Ndxb5 {[%clk 0:02:27]} 13. Nxc5 {[%clk 0:02:04.9]} 13... Nxc3 {[%clk
0:02:07.1]} 14. dxc3 {[%clk 0:02:04.6]} 14... Bxc3 {[%clk 0:02:06.6]} 15. Rb1
{[%clk 0:02:02.4]} 15... Qe7 {[%clk 0:01:35.5]} 16. Nxb7 {[%clk 0:01:52.9]}
16... Bg4 {[%clk 0:01:28.7]} 17. Be3 {[%clk 0:01:42.6]} 17... Ne6 {[%clk
0:01:11.7]} 18. h3 {[%clk 0:01:24.7]} 18... Bf5 {[%clk 0:01:11]} 19. Rb3 {[%clk
0:01:15.6]} 19... Bf6 {[%clk 0:01:08.5]} 20. Nd6 {[%clk 0:01:12.6]} 20... Bg6
{[%clk 0:01:08]} 21. Rb7 {[%clk 0:01:11.9]} 21... Qd8 {[%clk 0:01:05.7]} 22.
Bxa7 {[%clk 0:00:40.5]} 22... Qa5 {[%clk 0:01:04.1]} 23. Nc4 {[%clk 0:00:34.1]}
23... Qa6 {[%clk 0:00:59.1]} 24. Qb3 {[%clk 0:00:18.2]} 24... Rxa7 {[%clk
0:00:56.1]} 25. Rb6 {[%clk 0:00:18.7]} 25... Qa4 {[%clk 0:00:53.7]} 26. Qxa4
{[%clk 0:00:18.2]} 26... Rxa4 {[%clk 0:00:54.6]} 27. Rc1 {[%clk 0:00:16.2]}
27... Nd4 {[%clk 0:00:53.8]} 28. Kf1 {[%clk 0:00:15.1]} 28... Rc8 {[%clk
0:00:52.1]} 29. Rb4 {[%clk 0:00:13.2]} 29... Rxb4 {[%clk 0:00:51]} 30. axb4
{[%clk 0:00:14.1]} 30... Nb3 {[%clk 0:00:51.6]} 0-1

[Event "Early-Titled-Tuesday-Blitz-March-05-2024"]
[Site "Chess.com"]
[Date "2024.03.05"]
[Round "3"]
[White "jaskol95"]
[Black "TheAlienParty"]
[Result "1-0"]
[WhiteElo "2583"]
[BlackElo "2391"]
[TimeControl "180+1"]
[EndTime "8:30:21 PST"]
[Termination "jaskol95 won by checkmate"]

1. e4 {[%clk 0:03:00.9]} 1... e5 {[%clk 0:02:57.9]} 2. Nf3 {[%clk 0:03:00.7]}
2... Nc6 {[%clk 0:02:55.6]} 3. Bc4 {[%clk 0:03:00.9]} 3... Bc5 {[%clk
0:02:45.3]} 4. c3 {[%clk 0:03:00.9]} 4... Nf6 {[%clk 0:02:43.6]} 5. d4 {[%clk
0:03:01.2]} 5... exd4 {[%clk 0:02:38.2]} 6. cxd4 {[%clk 0:03:02.1]} 6... Bb4+
{[%clk 0:02:34.4]} 7. Kf1 {[%clk 0:03:02.8]} 7... d5 {[%clk 0:02:30.2]} 8. exd5
{[%clk 0:03:03]} 8... Nxd5 {[%clk 0:02:30]} 9. Nc3 {[%clk 0:03:03.8]} 9... Nxc3
{[%clk 0:02:26.7]} 10. bxc3 {[%clk 0:03:03.7]} 10... Bd6 {[%clk 0:02:25.5]} 11.
Ng5 {[%clk 0:02:39.3]} 11... Be6 {[%clk 0:01:49.4]} 12. d5 {[%clk 0:02:25.3]}
12... Ne5 {[%clk 0:01:48.5]} 13. dxe6 {[%clk 0:02:24.2]} 13... Nxc4 {[%clk
0:01:47.2]} 14. Qa4+ {[%clk 0:02:18.2]} 14... c6 {[%clk 0:01:45.3]} 15. Qxc4
{[%clk 0:02:12.2]} 15... O-O {[%clk 0:01:41.5]} 16. Nxf7 {[%clk 0:02:01.9]}
16... Qf6 {[%clk 0:01:37.6]} 17. Be3 {[%clk 0:01:34.7]} 17... Be7 {[%clk
0:01:26.2]} 18. Rd1 {[%clk 0:01:24.8]} 18... Rfc8 {[%clk 0:01:06.3]} 19. Bg5
{[%clk 0:01:16.1]} 19... Qf5 {[%clk 0:00:48.6]} 20. Bxe7 {[%clk 0:01:13.9]}
20... b5 {[%clk 0:00:47.5]} 21. Qb3 {[%clk 0:00:59.1]} 21... Rc7 {[%clk
0:00:38.5]} 22. Bd6 {[%clk 0:00:57.3]} 22... Rcc8 {[%clk 0:00:34.4]} 23. h4
{[%clk 0:00:53.8]} 23... a5 {[%clk 0:00:33.1]} 24. Ng5 {[%clk 0:00:46.9]} 24...
a4 {[%clk 0:00:32.3]} 25. Qb1 {[%clk 0:00:47.1]} 25... g6 {[%clk 0:00:26.1]} 26.
Qxf5 {[%clk 0:00:46.7]} 26... gxf5 {[%clk 0:00:25.7]} 27. Bc5 {[%clk 0:00:40.6]}
27... Kg7 {[%clk 0:00:25.2]} 28. Rd7+ {[%clk 0:00:37.5]} 28... Kf6 {[%clk
0:00:24.9]} 29. f4 {[%clk 0:00:38.1]} 29... h6 {[%clk 0:00:24]} 30. Rf7+ {[%clk
0:00:37]} 30... Kg6 {[%clk 0:00:23.5]} 31. h5# {[%clk 0:00:37.5]} 1-0

[Event "Early-Titled-Tuesday-Blitz-March-05-2024"]
[Site "Chess.com"]
[Date "2024.03.05"]
[Round "3"]
[White "nicolasbatista3"]
[Black "volodja49"]
[Result "1-0"]
[WhiteElo "2466"]
[BlackElo "2607"]
[TimeControl "180+1"]
[EndTime "8:30:22 PST"]
[Termination "nicolasbatista3 won on time"]

1. d4 {[%clk 0:03:00.9]} 1... e6 {[%clk 0:03:00.9]} 2. c4 {[%clk 0:03:00.9]}
2... d5 {[%clk 0:03:01.6]} 3. Nc3 {[%clk 0:03:01.2]} 3... Nf6 {[%clk 0:03:01.9]}
4. Bg5 {[%clk 0:03:00.4]} 4... Nbd7 {[%clk 0:03:01.3]} 5. e3 {[%clk 0:03:00.3]}
5... c6 {[%clk 0:03:01.7]} 6. cxd5 {[%clk 0:02:59.4]} 6... exd5 {[%clk 0:03:01]}
7. Bd3 {[%clk 0:02:59.6]} 7... Bd6 {[%clk 0:03:01.1]} 8. Qc2 {[%clk 0:02:57.5]}
8... Qc7 {[%clk 0:02:58.7]} 9. f4 {[%clk 0:02:49.1]} 9... h6 {[%clk 0:02:45]}
10. Bh4 {[%clk 0:02:48.7]} 10... O-O {[%clk 0:02:39.3]} 11. Nf3 {[%clk
0:02:47.8]} 11... Ng4 {[%clk 0:02:34.2]} 12. Qe2 {[%clk 0:02:11.6]} 12... g5
{[%clk 0:02:19.8]} 13. Nxg5 {[%clk 0:01:58.9]} 13... Nxe3 {[%clk 0:01:56.3]} 14.
Qh5 {[%clk 0:01:10.3]} 14... Bxf4 {[%clk 0:00:57.4]} 15. Qxh6 {[%clk 0:00:38.7]}
15... Nf6 {[%clk 0:00:48.5]} 16. Bh7+ {[%clk 0:00:30.1]} 16... Kh8 {[%clk
0:00:48]} 17. Qxf8+ {[%clk 0:00:29.5]} 1-0